fUST/lending_fUST_20240114
["ID","MTS","AMOUNT","RATE_DAILY","PERIOD"]
[311560017,1705241449484,-230.805422,0.00036466,2]
[311560018,1705241449493,-428.3193942,0.00036575,4]
[311560019,1705241449502,-16038.55083993,0.0003659,3]
[311560020,1705241449512,-4570.70099633,0.00036619,2]
[311560055,1705242632644,-154.95351395,0.00024967,4]
[311560056,1705242632657,-154.95351395,0.00024967,4]
[311560057,1705242632666,-260.47007699,0.00024968,2]
[311560058,1705242632676,-211.11101816,0.00025,2]
[311560123,1705243726790,200.0,0.00022975,7]
[311560178,1705243831843,-560.82400817,0.00020871,2]
[311560180,1705243831853,-180.18520077,0.00020872,2]
[311560182,1705243831863,-1112.81666709,0.00020873,2]
[311560184,1705243831872,-154.95351395,0.00020873,3]
[311560186,1705243831881,-596.0,0.00020873,3]
[311560187,1705243831892,-375.05,0.00020874,3]
[311560188,1705243831901,-265.05974209,0.00020874,2]
[311560189,1705243831910,-191.13595165,0.00020874,2]
[311560191,1705243831919,-15891.22665678,0.00020874,2]
[311560192,1705243831928,-154.95351395,0.00020875,4]
[311560195,1705243831937,-19838.74080195,0.00020875,2]
[311560197,1705243831946,-5957.41962199,0.00020875,2]
[311560199,1705243831955,-154.95351395,0.00020876,2]
[311560201,1705243831964,-6516.5814095,0.00020876,2]
[311560203,1705243831974,-20845.24382683,0.00020883,2]
[311560205,1705243831983,-2926.5758916,0.00020893,2]
[311560207,1705243831992,-841.155736,0.00021897,2]
[311560208,1705243832001,-166.666666,0.00021918,2]
[311560210,1705243832010,-166.666666,0.00022431,2]
[311560212,1705243832019,-237.06766329,0.000229,2]
[311560214,1705243832029,-166.666666,0.00022944,2]
[311560215,1705243832037,-715.2,0.00022965,3]
[311560216,1705243832047,-10286.36625249,0.00022975,2]
[311560217,1705243832056,-619.81969321,0.00022975,2]
[311560218,1705243832066,-1274.40351652,0.00022975,2]
[311560219,1705243832075,-154.95351395,0.00022975,2]
[311560220,1705243832084,-243.22004554,0.00023368,2]
[311560221,1705243832093,-24900.0,0.00023369,2]
[311560222,1705243832103,-166.666666,0.00023456,2]
[311560223,1705243832112,-166.666666,0.00023969,2]
[311560224,1705243832121,-4007.33265674,0.00024,2]
[311560225,1705243832130,-357.06535191,0.0002415,2]
[311560226,1705243832140,-8746.44340822,0.0002425,2]
[311560227,1705243832149,-166.666666,0.00024482,2]
[311560229,1705243832158,-98.80848344,0.00025,2]
[311560231,1705243832168,-155.00310006,0.00025,2]
[311560233,1705243832177,-459.72566429,0.00025,2]
[311560235,1705243832186,-205.85050123,0.00025,2]
[311560237,1705243832195,-196.88588059,0.00025,2]
[311560238,1705243832204,-194.15327733,0.00025,2]
[311560240,1705243832214,-537.44070193,0.00025,2]
[311560242,1705243832223,-166.49187593,0.00025,2]
[311560244,1705243832232,-155.06418321,0.00025,2]
[311560245,1705243832241,-172.23474005,0.00025,2]
[311560247,1705243832251,-211.29574429,0.00025,2]
[311560249,1705243832260,-343.49604143,0.00025,7]
[311560251,1705243832269,-4714.61123434,0.00025,2]
[311560253,1705243832280,-678.17739102,0.00025,2]
[311560255,1705243832291,-280.0,0.00025272,7]
[311560257,1705243832300,-3314.65607422,0.00027,2]
[311560259,1705243832309,-460.9594683,0.00027,2]
[311560261,1705243832318,-357.06535187,0.00027013,2]
[311560263,1705243832326,-600.0,0.00027144,2]
[311560265,1705243832336,-600.0,0.00027144,2]
[311560267,1705243832345,-600.0,0.00027144,2]
[311560269,1705243832354,-261.04615334,0.000274,2]
[311560270,1705243832363,-8206.14600773,0.000274,2]
[311560272,1705243832373,-391.0,0.00027799,15]
[311560274,1705243832382,-237.06766329,0.000279,2]
[311560276,1705243832391,-4797.43059107,0.00028,2]
[311560278,1705243832400,-158.2058772,0.0002828,2]
[311560280,1705243832409,-1438.05949571,0.00028537,2]
[311560282,1705243832418,-500.0,0.00028542,2]
[311560284,1705243832429,-2078.125,0.00028543,3]
[311560286,1705243832438,-500.0,0.00028679,2]
[311560288,1705243832447,-500.0,0.00028816,2]
[311560290,1705243832457,-500.0,0.00028953,2]
[311560292,1705243832466,-154.95351395,0.00029,2]
[311560294,1705243832475,-500.0,0.0002909,2]
[311560296,1705243832484,-500.0,0.00029227,2]
[311560298,1705243832493,-415.37846309,0.00029351,2]
[311560300,1705243832502,-178.01934132,0.00029351,2]
[311560302,1705243832511,-500.0,0.00029364,2]
[311560304,1705243832520,-620.33477851,0.00029368,2]
[311560306,1705243832528,-500.0,0.00029501,2]
[311560308,1705243832537,-500.0,0.00029638,2]
[311560310,1705243832545,-500.0,0.00029775,2]
[311560311,1705243832554,-357.06535187,0.00029875,2]
[311560312,1705243832563,-500.0,0.00029912,2]
[311560314,1705243832572,-415.40619243,0.00029999,2]
[311560315,1705243832581,-671.70498662,0.00029999,2]
[311560317,1705243832590,-322.53034863,0.00029999,2]
[311560320,1705243832600,-1030.69638681,0.00029999,2]
[311560321,1705243832609,-242.75752855,0.00029999,2]
[311560323,1705243832619,-153.0,0.00030137,2]
[311560325,1705243832628,-153.0,0.00030137,2]
[311560326,1705243832637,-153.0,0.00030137,2]
[311560328,1705243832647,-153.0,0.00030137,2]
[311560330,1705243832656,-620.01673893,0.00030837,2]
[311560332,1705243832665,-150.0,0.000319,2]
[311560334,1705243832673,-357.06535187,0.00032738,2]
[311560336,1705243832683,-237.06766329,0.000329,2]
[311560338,1705243832692,-171.66764837,0.0003292,2]
[311560340,1705243832701,-319.25153112,0.00033,15]
[311560342,1705243832710,-289.5463958,0.00033913,4]
[311560344,1705243832719,-1000.0,0.00034,7]
[311560346,1705243832729,-818.47875272,0.00034749,5]
[311560348,1705243832738,-12234.910508,0.00034788,5]
[311560350,1705243832747,-376869.23922917,0.0003488,2]
[311560352,1705243832756,-3479.31697369,0.00034984,4]
[311560354,1705243832766,-45038.0,0.00034991,4]
[311560355,1705243832775,-2100.0,0.00035,7]
[311560356,1705243832785,-154.95351395,0.00035,6]
[311560357,1705243832794,-1493.09574604,0.00035,7]
[311560359,1705243832804,-844.84797374,0.00035,2]
[311560361,1705243832813,-2135.5140438,0.00035,4]
[311560363,1705243832823,-164.88088693,0.00035,4]
[311560365,1705243832832,-489.0749698,0.00035341,4]
[311560367,1705243832841,-151.0,0.00035458,4]
[311560369,1705243832850,-47122.33262979,0.000355,14]
[311560371,1705243832860,-357.06535187,0.000356,2]
[311560373,1705243832870,-908.641429,0.00035616,120]
[311560375,1705243832879,-437.3876237,0.00035698,4]
[311560377,1705243832889,-309.82961307,0.00035698,4]
[311560379,1705243832898,-155.43980469,0.00035698,4]
[311560381,1705243832907,-155.47141227,0.00035698,4]
[311560383,1705243832916,-155.45496495,0.00035698,4]
[311560385,1705243832926,-155.53300706,0.00035698,2]
[311560387,1705243832935,-297.73015088,0.00035698,4]
[311560389,1705243832944,-156.41283895,0.00035698,4]
[311560391,1705243832954,-3025.65541023,0.00035698,4]
[311560393,1705243832963,-323.09064549,0.00035698,4]
[311560395,1705243832972,-1188.78453497,0.00035698,4]
[311560397,1705243832981,-286.13959148,0.00035698,4]
[311560399,1705243832991,-13696.49420724,0.00035698,4]
[311560401,1705243833001,-269.75388063,0.00035698,4]
[311560403,1705243833010,-156.20380445,0.00035698,4]
[311560405,1705243833019,-687.59711705,0.00035698,4]
[311560407,1705243833029,-2126.09470477,0.00035698,2]
[311560409,1705243833039,-569.88082184,0.00035698,4]
[311560411,1705243833048,-500.0,0.00035699,4]
[311560413,1705243833057,-500.0,0.00035699,4]
[311560415,1705243833066,-233.50323636,0.00035699,4]
[311560417,1705243833075,-500.0,0.00035699,4]
[311560418,1705243833084,-500.0,0.00035699,4]
[311560419,1705243833093,-323.8347276,0.00035699,4]
[311560420,1705243833102,-530.27616608,0.00035699,2]
[311560421,1705243833111,-272.42746379,0.00035699,2]
[311560422,1705243833121,-235.66547854,0.00035699,7]
[311560423,1705243833130,-500.0,0.00035699,2]
[311560424,1705243833139,-392.77579757,0.00035699,2]
[311560425,1705243833149,-410.59168235,0.00035699,7]
[311560426,1705243833158,-227.26121403,0.00035699,7]
[311560427,1705243833167,-500.0,0.00035699,2]
[311560428,1705243833176,-500.0,0.00035699,7]
[311560429,1705243833185,-500.0,0.00035699,2]
[311560430,1705243833194,-380.7889098,0.00035699,2]
[311560431,1705243833204,-500.0,0.00035699,7]
[311560432,1705243833213,-157.11031902,0.00035699,2]
[311560433,1705243833222,-166.49,0.00035699,2]
[311560434,1705243833232,-166.49,0.00035699,2]
[311560435,1705243833241,-276000.0,0.000357,2]
[311560436,1705243833251,-151.0,0.000357,2]
[311560437,1705243833261,-874.299272,0.000357,2]
[311560438,1705243833270,-874.299272,0.000357,2]
[311560439,1705243833280,-3931.75997852,0.00035798,4]
[311560440,1705243833289,-425.12426258,0.00035798,2]
[311560441,1705243833298,-156.91175548,0.00035798,4]
[311560442,1705243833308,-379815.56706154,0.000358,2]
[311560443,1705243833317,-874.299272,0.000358,2]
[311560444,1705243833326,-874.299272,0.000358,2]
[311560445,1705243833335,-78338.91956409,0.00035999,30]
[311560446,1705243833344,-500.0,0.00035999,7]
[311560447,1705243833353,-367.8760457,0.00035999,7]
[311560448,1705243833363,-550.12742727,0.00035999,7]
[311560449,1705243833372,-500.0,0.00035999,7]
[311560450,1705243833381,-230.28696558,0.00036,4]
[311560451,1705243833390,-8884.70874186,0.00036,7]
[311560452,1705243833398,-1500.0,0.00036,2]
[311560453,1705243833408,-151.0,0.00036128,4]
[311560454,1705243833418,-3922.0,0.0003656,30]
[311560455,1705243833427,-426.0,0.0003656,30]
[311560456,1705243833436,-20671.69426951,0.00036569,2]
[311560496,1705243837934,-3182.04223107,0.00028543,3]
[311560498,1705243837946,-799.20776893,0.00028543,3]
[311560499,1705243837957,-2900.73463986,0.00035668,30]
[311560503,1705243837993,-629.26536014,0.00035668,30]
[311560504,1705243838002,-3530.0,0.00035678,30]
[311560505,1705243838011,-3530.0,0.00035688,30]
[311560506,1705243838020,-102963.2975454,0.00035999,4]
[311560508,1705243838033,-147035.7024546,0.00035999,4]
[311560510,1705243838042,-6622.77180777,0.00036569,2]
[311560512,1705243838052,-426.0,0.0003657,30]
[311560514,1705243838061,-173.19595877,0.00036578,4]
[311560515,1705243838069,-2813.88338109,0.00036578,4]
[311560517,1705243838078,-309.73672456,0.00036578,4]
[311560518,1705243838087,-222.27499817,0.00036578,4]
[311560519,1705243838096,-155.09608849,0.00036578,4]
[311560520,1705243838105,-326.84593778,0.00036578,4]
[311560521,1705243838114,-15656.77459625,0.00036578,4]
[311560522,1705243838123,-827.03386005,0.00036578,4]
[311560523,1705243838133,-266.50001777,0.00036578,4]
[311560524,1705243838142,-262.35393072,0.00036578,4]
[311560525,1705243838151,-576.15495713,0.00036578,4]
[311560526,1705243838160,-755.000001,0.00036579,4]
[311560527,1705243838170,-250.0,0.00036579,10]
[311560528,1705243838180,-426.0,0.0003658,30]
[311560529,1705243838189,-151.0,0.00036608,2]
[311560530,1705243838198,-874.299272,0.00036608,2]
[311560531,1705243838206,-874.299272,0.00036608,2]
[311560532,1705243838216,-1818.3779221,0.00036608,2]
[311560533,1705243838225,-500.0,0.00036619,2]
[311560534,1705243838235,-504.34686902,0.00036619,2]
[311560535,1705243838244,-429.29900367,0.00036619,2]
[311560536,1705243838254,-253.23349778,0.00036676,4]
[311560537,1705243838264,-740.15427417,0.00036678,14]
[311560538,1705243838273,-253.71660409,0.00036678,4]
[311560539,1705243838283,-155.21749032,0.00036678,4]
[311560540,1705243838296,-8831.34212377,0.00036678,4]
[311560541,1705243838305,-250.47041514,0.00036678,2]
[311560542,1705243838315,-937.89588882,0.00036679,3]
[311560543,1705243838325,-151.0,0.00036679,2]
[311560544,1705243838335,-874.299272,0.00036679,2]
[311560545,1705243838345,-874.299272,0.00036679,2]
[311560546,1705243838354,-28812.39350336,0.000367,3]
[311560547,1705243838366,-179.774385,0.00036728,2]
[311560548,1705243838375,-167.409001,0.00036728,2]
[311560549,1705243838385,-151.0,0.00036799,4]
[311560550,1705243838394,-549588.12235212,0.000368,15]
[311560551,1705243838405,-151.0,0.000368,2]
[311560552,1705243838414,-874.299272,0.000368,2]
[311560553,1705243838423,-874.299272,0.000368,2]
[311560554,1705243838432,-5000.0,0.00036827,3]
[311560555,1705243838443,-151.4697106,0.000369,2]
[311560556,1705243838452,-230.805422,0.0003691,2]
[311560557,1705243838461,-151.0,0.00036919,2]
[311560558,1705243838470,-874.299272,0.00036919,2]
[311560559,1705243838479,-874.299272,0.00036919,2]
[311560560,1705243838489,-95480.91414968,0.00036919,10]
[311560561,1705243838498,-5604.72235848,0.00037,8]
[311560562,1705243838508,-418.47232,0.00037,2]
[311560563,1705243838517,-1000.01816875,0.00037,7]
[311560564,1705243838528,-29999.0109106,0.00037,5]
[311560565,1705243838537,-289.707719,0.00037011,2]
[311560566,1705243838547,-183.584483,0.00037011,2]
[311560567,1705243838557,-263.125397,0.00037011,2]
[311560568,1705243838569,-181.612486,0.00037011,2]
[311560569,1705243838578,-672.637458,0.00037011,2]
[311560570,1705243838589,-444.954667,0.00037011,2]
[311560571,1705243838598,-200.710729,0.00037011,2]
[311560572,1705243838607,-167.996451,0.00037011,2]
[311560573,1705243838617,-360.249958,0.00037011,2]
[311560574,1705243838627,-546.434817,0.00037011,2]
[311560575,1705243838636,-1072.01965153,0.0003707,31]
[311560576,1705243838646,-500.0,0.000371,2]
[311560577,1705243838655,-216.77428563,0.0003724,2]
[311560578,1705243838666,-179.774385,0.00037321,2]
[311560579,1705243838675,-167.409001,0.00037321,2]
[311560580,1705243838684,-161.859774,0.00037321,2]
[311560581,1705243838693,-192.361745,0.00037321,2]
[311560582,1705243838702,-150.529243,0.00037321,2]
[311560583,1705243838711,-176.585617,0.00037321,2]
[311560584,1705243838721,-176.585618,0.00037321,2]
[311560585,1705243838731,-150.529243,0.00037321,2]
[311560586,1705243838741,-182.521146,0.00037355,2]
[311560587,1705243838751,-230.805422,0.00037355,2]
[311560588,1705243838761,-151.0,0.00037469,4]
[311560589,1705243838771,-289.707719,0.00037474,2]
[311560590,1705243838780,-183.584483,0.00037474,2]
[311560591,1705243838789,-672.637458,0.00037474,2]
[311560592,1705243838798,-444.954667,0.00037474,2]
[311560593,1705243838808,-360.249958,0.00037474,2]
[311560594,1705243838818,-546.434817,0.00037474,2]
[311560595,1705243838827,-5000.0,0.00037538,7]
[311560596,1705243838838,-151.4697106,0.00037638,2]
[311560597,1705243838846,-158.272086,0.00037811,2]
[311560598,1705243838855,-151.0,0.000379,2]
[311560599,1705243838865,-874.299272,0.00037936,2]
[311560600,1705243838874,-874.299272,0.00037936,2]
[311560601,1705243838883,-289.707719,0.00037936,2]
[311560602,1705243838892,-183.584483,0.00037936,2]
[311560603,1705243838901,-672.637458,0.00037936,2]
[311560604,1705243838910,-444.954667,0.00037936,2]
[311560605,1705243838919,-360.249958,0.00037936,2]
[311560606,1705243838928,-546.434817,0.00037936,2]
[311560607,1705243838937,-500.0,0.00037949,10]
[311560608,1705243838946,-426.0,0.0003797,30]
[311560609,1705243838954,-426.0,0.0003798,30]
[311560610,1705243838963,-426.0,0.0003799,30]
[311560611,1705243838972,-36211.00181947,0.00038,2]
[311560612,1705243838982,-2444.99033654,0.00038,10]
[311560613,1705243838991,-1579.23137311,0.00038,4]
[311560614,1705243839000,-154.86062544,0.00038,2]
[311560615,1705243839009,-10826.01837143,0.00038,3]
[311560616,1705243839019,-100120.98614257,0.00038,14]
[311560617,1705243839028,-20000.0,0.00038,4]
[311560618,1705243839037,-22281.53438238,0.00038,10]
[311560619,1705243839046,-513.18275657,0.00038,120]
[311560620,1705243839055,-1000.0,0.00038,38]
[311560621,1705243839064,-73761.42855359,0.00038,14]
[311560622,1705243839073,-254.540668,0.00038,2]
[311560623,1705243839082,-874.299272,0.00038,2]
[311560624,1705243839092,-874.299272,0.00038,2]
[311560625,1705243839101,-874.299272,0.00038,2]
[311560626,1705243839110,-874.299272,0.00038,2]
[311560627,1705243839119,-874.299272,0.00038,2]
[311560628,1705243839128,-874.299268,0.00038,2]
[311560629,1705243839138,-500.0,0.000381,2]
[311560630,1705243839147,-151.0,0.0003814,4]
[311560631,1705243839156,-500.0,0.00038356,2]
[311560632,1705243839165,-151.4697106,0.00038376,2]
[311560633,1705243839174,-289.707719,0.00038399,2]
[311560634,1705243839183,-183.584483,0.00038399,2]
[311560635,1705243839192,-672.637458,0.00038399,2]
[311560636,1705243839201,-444.954667,0.00038399,2]
[311560637,1705243839211,-546.434817,0.00038399,2]
[311560638,1705243839220,-360.249958,0.00038399,2]
[311560639,1705243839229,-5000.0,0.00038503,3]
[311560640,1705243839238,-288.0,0.00038663,14]
[311560641,1705243839247,-633.54098007,0.00038678,30]
[311560642,1705243839256,-3541.45992404,0.000388,7]
[311560643,1705243839265,-890.21653532,0.000388,27]
[311560644,1705243839350,-151.0,0.00038811,4]
[311560645,1705243839359,-289.707719,0.00038862,2]
[311560646,1705243839367,-183.584483,0.00038862,2]
[311560647,1705243839376,-672.637458,0.00038862,2]
[311560648,1705243839385,-444.954667,0.00038862,2]
[311560649,1705243839394,-360.249958,0.00038862,2]
[311560650,1705243839403,-546.434817,0.00038862,2]
[311560651,1705243839411,-500.0,0.00039,30]
[311560652,1705243839420,-500.0,0.000391,2]
[311560653,1705243839429,-181.76365272,0.00039114,5]
[311560654,1705243839437,-1500.0,0.00039205,7]
[311560655,1705243839446,-229373.45374177,0.00039244,7]
[311560656,1705243839459,-114302.3977805,0.00039244,7]
[311560657,1705243839470,-788.15000025,0.00039244,7]
[311560664,1705243840777,-496.67,0.00035989,3]
[311560665,1705243840786,-3530.0,0.00036769,30]
[311560666,1705243840795,-776.31,0.00036779,30]
[311560668,1705243840958,-2753.69,0.00036779,30]
[311560670,1705243840967,-3530.0,0.00036789,30]
[311560672,1705243840976,-151.4697106,0.000369,2]
[311560674,1705243840985,-151.4697106,0.00037638,2]
[311560675,1705243840994,-151.4697106,0.00038376,2]
[311560677,1705243841003,-181.76365272,0.00039114,5]
[311560678,1705243841012,-1900.37011409,0.00039244,7]
[311560680,1705243841027,-15617.03067918,0.00039244,7]
[311560682,1705243841038,-70500.37628421,0.00039244,7]
[311560684,1705243841048,-750.0,0.00039319,10]
[311560685,1705243841058,-151.0,0.00039481,4]
[311560687,1705243841068,-5000.0,0.00039633,3]
[311560689,1705243841078,-160.03466097,0.0003965,4]
[311560691,1705243841087,-95.03602482,0.00039852,5]
[311560692,1705243841098,-86.7276279,0.00039852,5]
[311560693,1705243841108,-181.76365272,0.00039852,5]
[311560694,1705243841116,-1500.0,0.0003989,14]
[311560695,1705243841126,-2500.0,0.0003989,14]
[311560696,1705243841134,-160.0,0.00039924,3]
[311560698,1705243841144,-466.12469227,0.00039988,4]
[311560700,1705243841155,-258.3520573,0.00039988,4]
[311560701,1705243841164,-10378.77685151,0.0003999,4]
[311560703,1705243841174,-154.82968734,0.0004,4]
[311560704,1705243841183,-1279.20529545,0.0004,4]
[311560705,1705243841193,-718.67339817,0.0004,2]
[311560706,1705243841202,-157.52724253,0.0004,4]
[311560708,1705243841212,-154.86062544,0.0004,4]
[311560709,1705243841220,-3920.05617259,0.0004,2]
[311560710,1705243841229,-3039.999999,0.0004,2]
[311560711,1705243841239,-737.57652447,0.0004,2]
[311560712,1705243841248,-31106.61300278,0.0004,15]
[311560713,1705243841258,-1903.69380503,0.0004,2]
[311560757,1705243842872,-500.0,0.00035697,2]
[311560758,1705243842881,-205.29584118,0.00035697,2]
[311560759,1705243842890,-260.09415882,0.00035699,4]
[311560760,1705243842902,-124.99504028,0.00035699,4]
[311560761,1705243842911,-500.0,0.00035699,4]
[311560762,1705243842920,-183.93802285,0.00035699,4]
[311560763,1705243842929,-423.17750471,0.00035699,7]
[311560764,1705243842938,-165.03822818,0.00035799,7]
[311560765,1705243842947,-112.39521991,0.0004,2]
[311560766,1705243842958,-1238.19758407,0.0004,2]
[311560767,1705243842972,-1745.71339099,0.0004,2]
[311560768,1705243842980,-500.0,0.0004,15]
[311560769,1705243842989,-2633.30580736,0.0004,4]
[311560770,1705243842998,-301.67317957,0.0004,2]
[311560771,1705243843007,-225.8,0.0004,10]
[311560772,1705243843015,-743.11579326,0.0004,5]
[311560773,1705243843027,-1708.76,0.0004,5]
[311560774,1705243843037,-10831.93762332,0.0004,5]
[311560775,1705243843048,-4867.62453888,0.0004,5]
[311560776,1705243843059,-5108.09430891,0.0004,5]
[311560777,1705243843069,-7570.27424076,0.0004,5]
[311560778,1705243843080,-19170.19349487,0.0004,5]
[311560779,1705243843089,-14811.39651634,0.0004,10]
[311560866,1705243845922,-395.62627631,0.00034,5]
[311560868,1705243845931,-410.36281371,0.00035799,7]
[311560870,1705243845941,-200.0401597,0.00036768,7]
[311560871,1705243845949,-3080.4548716,0.00036768,4]
[311560873,1705243845959,-1406.7343039,0.00039999,4]
[311560874,1705243845969,-4004.24608778,0.00039999,4]
[311560875,1705243845978,-676.74021526,0.00039999,4]
[311560876,1705243845987,-154.95351395,0.00039999,4]
[311560878,1705243845997,-35188.60348366,0.0004,10]
[311560880,1705243846006,-50000.0,0.0004,15]
[311560892,1705243846094,-50000.0,0.0004,20]
[311560894,1705243846104,-50000.0,0.0004,25]
[311560896,1705243846112,-160.00065061,0.0004,4]
[311560898,1705243846122,-40872.46057056,0.0004,11]
[311560900,1705243846131,-4420.84908017,0.0004,2]
[311560902,1705243846140,-500.0,0.0004,10]
[311560904,1705243846151,-697.30904069,0.0004,5]
[311560905,1705243846161,-2823.40095454,0.0004,30]
[311560907,1705243846173,-460.0,0.0004,30]
[311560909,1705243846182,-154.95351395,0.0004,120]
[311560911,1705243846191,-3393.37760128,0.0004,120]
[311560913,1705243846200,-3000.88,0.0004,30]
[311560915,1705243846209,-2157.45154348,0.0004,4]
[311560916,1705243846218,-1000.0,0.0004,40]
[311560917,1705243846227,-502.87,0.0004,7]
[311560918,1705243846237,-187.0,0.0004,120]
[311560919,1705243846246,-322.37131406,0.0004,90]
[311560920,1705243846257,-15000.0,0.0004,30]
[311560921,1705243846267,-2000.0,0.0004,22]
[311560922,1705243846276,-2000.0,0.0004001,22]
[311560923,1705243846285,-2018.431066,0.0004002,22]
[311560924,1705243846298,-2000.0,0.00040049,30]
[311560925,1705243846307,-500.0,0.000401,2]
[311560926,1705243846316,-151.0,0.00040152,21]
[311560927,1705243846325,-160.0,0.00040168,4]
[311560928,1705243846334,-160.0,0.00040412,5]
[311560929,1705243846343,-150.95471359,0.00040432,2]
[311560930,1705243846353,-250.41575527,0.00040432,2]
[311560931,1705243846363,-1816.43517,0.00040504,2]
[311560932,1705243846373,-1500.0,0.00040575,21]
[311560933,1705243846382,-2000.0,0.00040575,15]
[311560934,1705243846391,-212.05759484,0.0004059,8]
[311560935,1705243846399,-212.05759484,0.0004059,8]
[311560936,1705243846410,-4000.0,0.000406,14]
[311560937,1705243846419,-4000.0,0.000406,14]
[311560938,1705243846428,-5000.0,0.000406,14]
[311560939,1705243846437,-1048.251085,0.000406,14]
[311560940,1705243846446,-160.0,0.00040656,6]
[311560941,1705243846456,-1000.0,0.00040689,10]
[311560942,1705243846464,-17179.71873575,0.000407,30]
[311560943,1705243846473,-3530.0,0.0004081,30]
[311560944,1705243846482,-3530.0,0.0004082,30]
[311560945,1705243846492,-236.31957,0.00040823,21]
[311560946,1705243846501,-235560.96429592,0.000409,31]
[311560947,1705243846517,-2135.5140438,0.00039999,4]
[311560948,1705243846525,-10749.44010825,0.000409,31]
[311560949,1705243846538,-982.37154437,0.000409,31]
[311561036,1705245041124,-154.9690062,0.00022188,4]
[311561037,1705245041134,-954.7556542,0.00022221,2]
[311561042,1705245043059,-154.9690062,0.00022187,2]
[311561043,1705245043069,-560.82400817,0.00022187,2]
[311561044,1705245043079,-6325.4247267,0.00022221,2]
[311561119,1705246109617,2873.06799436,0.00029,30]
[311561131,1705246176664,2870.85002396,0.00029,30]
[311561140,1705246208733,173.7337985,0.00019063,2]
[311561346,1705246238394,-1466.83935074,0.00019996,2]
[311561348,1705246238403,-3480.45535994,0.00019996,2]
[311561350,1705246238412,-265.05974209,0.00019997,2]
[311561352,1705246238421,-3901.84554722,0.00019997,2]
[311561354,1705246238432,-4090.01477232,0.00019997,2]
[311561356,1705246238441,-7948.24101532,0.00019997,2]
[311561358,1705246238450,-191.13595165,0.00019998,2]
[311561360,1705246238459,-1576.96754057,0.00019998,2]
[311561362,1705246238468,-452.00948206,0.00019999,2]
[311561364,1705246238478,-323.05791253,0.00019999,2]
[311561366,1705246238486,-170.61170422,0.0002,2]
[311561368,1705246238495,-154.9690062,0.00020001,2]
[311561370,1705246238505,-154.9690062,0.00020001,4]
[311561372,1705246238514,-245.00401431,0.00020002,2]
[311561374,1705246238523,-19838.74080195,0.00020091,2]
[311561376,1705246238532,-4532.52871437,0.00020097,2]
[311561378,1705246238543,-9315.93259658,0.000201,2]
[311561379,1705246238556,-2726.99510204,0.000201,2]
[311561380,1705246238565,-154.9690062,0.00020101,2]
[311561381,1705246238574,-487.21606626,0.00020121,2]
[311561382,1705246238584,-223.7168889,0.00020517,2]
[311561383,1705246238593,-166.666666,0.00021918,2]
[311561384,1705246238603,-471.49,0.0002221,3]
[311561385,1705246238613,-327.42,0.0002221,3]
[311561386,1705246238623,-565.79,0.00022211,3]
[311561387,1705246238632,-9096.14493925,0.0002222,2]
[311561388,1705246238642,-2349.53379247,0.00022221,2]
[311561389,1705246238652,-155.00465014,0.00022221,2]
[311561390,1705246238661,-166.666666,0.00022559,2]
[311561391,1705246238670,-155.07556836,0.00022975,2]
[311561392,1705246238680,-3519.97151845,0.00022975,2]
[311561393,1705246238689,-180.0,0.00023,2]
[311561394,1705246238699,-392.91,0.00023167,3]
[311561395,1705246238709,-24900.0,0.00023177,2]
[311561397,1705246238718,-166.666666,0.000232,2]
[311561399,1705246238727,-166.666666,0.00023841,2]
[311561401,1705246238736,-166.666666,0.00024482,2]
[311561402,1705246238746,-302.5746405,0.00024658,2]
[311561403,1705246238757,-2000.0,0.00025,2]
[311561404,1705246238767,-2000.0,0.0002501,2]
[311561405,1705246238777,-2000.0,0.0002502,2]
[311561406,1705246238786,-2000.0,0.0002503,2]